[Event "FIDE WSCC 50 2022"]
[Site "Assisi"]
[Date "2022.11.17"]
[Round "3.23"]
[White "Antonio, Rogelio Jr"]
[Black "Al-Ali, Hussein Ali Hussein"]
[Result "1-0"]
[ECO "C79"]
[WhiteElo "2397"]
[BlackElo "2231"]
[Annotator "TA"]
[PlyCount "103"]
[EventDate "2022.11.14"]
[EventType "swiss"]
[EventCountry "ITA"]
[SourceTitle "playchess.com"]
[Source "ChessBase"]
[SourceQuality "1"]
[TimeControl "40/5400+30:1800+30"]

{[%evp 17,103,44,29,25,27,12,28,27,40,31,55,51,97,104,97,104,98,88,89,101,80,85,107,91,110,90,178,170,200,214,281,278,279,285,278,276,268,266,425,419,438,332,512,425,429,411,556,545,545,545,545,535,528,496,464,451,521,506,615,604,616,574,564,547,502,466,736,716,644,632,617,567,914,906,893,882,831,825,1022,1014,1033,974,1308,1295,1215,1174,1059,931]} 1. e4 e5 2. Nf3 Nc6 3. Bb5 a6 4. Ba4 Nf6 5. O-O d6 6. Re1 Bd7 7. c3 g6 8. d4 b5 9. Bb3 Bg7 10. h3 {C79: Ruy Lopez: Steinitz-type lines with 3...a6 4 Ba4 Nf6 5 0-0 d6.} O-O 11. a3 {[%cal Ba2a3,Ba3a4][%mdl 32] [#]} a5 $146 ({Predecessor:} 11... Re8 12. Nbd2 a5 13. d5 Nb8 14. a4 b4 15. Nc4 Na6 16. Bc2 bxc3 17. bxc3 Nc5 {0-1 (54) Firat,B (2463)-Samani,Y (2266) Konya 2019}) 12. a4 {White has an edge.} b4 13. Nbd2 h6 14. dxe5 Nxe5 (14... dxe5 $14 15. cxb4 axb4) 15. Nxe5 $16 dxe5 16. cxb4 axb4 17. Nf3 Qe7 18. Qc2 Rfc8 19. Be3 c5 20. Nd2 {[%cal Bf3d2,Bd2c4,Bc4b6][%mdl 32]} Nh5 {[%cal Bf6h5,Bh5f4,Bf4d3][%mdl 32]} 21. Nc4 Ra6 {[#] Prevents Nb6.} (21... Nf4 $16) 22. a5 $1 $18 {Black must now prevent Nb6.} Nf4 23. Nb6 Rd8 {[%cal Od7h3]} 24. Qxc5 Qxc5 25. Bxc5 Nd3 26. Be7 Re8 27. Red1 ({Don't do} 27. Nxd7 $6 Nxe1 28. Bxb4 Nd3 $16) 27... Rxe7 (27... Bb5 $142) 28. Rxd3 Be6 29. Bxe6 Rxe6 (29... fxe6 {was called for.} 30. Nc4 Bf8) 30. Nd5 {[#] aiming for Nc7.} Ra7 31. Nxb4 Rb7 32. Nd5 {White is clearly winning.} Ra6 33. b4 Bf8 34. Ra4 Kg7 35. Rc3 Bd6 36. Kf1 f5 37. f3 Kf7 38. Ke2 Ke6 39. Rc4 Kd7 40. Kd3 Rb8 41. Nc3 Bc7 (41... Rba8 $142 42. Nd5 Rb8) 42. b5 {[%cal Bb4b5,Bb5b6][%mdl 32]} Rd6+ 43. Kc2 Bd8 44. b6 fxe4 45. Nxe4 Rc6 46. Rxc6 Kxc6 {[%mdl 4096] Endgame KRB-KRN} 47. Rc4+ Kd5 48. Rc5+ Kd4 49. Rc6 h5 50. Rxg6 Kc4 51. Re6 Kd5 52. Re8 {Black got outplayed after the opening.  Weighted Error Value: White=0.09 (flawless) /Black=0.39} 1-0

[Event "FIDE WSCC 50 2022"]
[Site "Assisi"]
[Date "2022.11.17"]
[Round "3.24"]
[White "Krasenkova, Elena"]
[Black "Vinter-Schou, Uffe"]
[Result "1/2-1/2"]
[ECO "E20"]
[WhiteElo "2124"]
[BlackElo "2375"]
[Annotator "TA"]
[PlyCount "178"]
[EventDate "2022.11.14"]
[EventType "swiss"]
[EventCountry "ITA"]
[SourceTitle "playchess.com"]
[Source "ChessBase"]
[SourceQuality "1"]
[TimeControl "40/5400+30:1800+30"]

{[%evp 9,178,8,0,0,55,39,45,-20,-18,0,0,0,14,12,16,18,32,21,10,11,27,6,0,18,24,0,61,-47,27,-40,-17,-17,0,-54,-98,-87,-71,-162,-146,-152,-87,-91,-58,-58,-52,-60,-8,-19,-12,-35,0,-22,0,0,0,-8,-31,-29,0,-32,-24,-101,-93,-91,-17,-47,0,-6,-6,-11,0,0,119,126,269,269,256,8,8,8,8,8,8,8,8,8,8,8,12,8,8,8,8,8,8,8,8,8,8,8,8,8,8,8,8,8,8,8,8,8,8,8,8,8,8,8,8,8,21,8,8,8,8,8,8,8,8,8,8,8,8,8,8,8,8,8,8,8,8,8,8,8,8,8,8,8,8,8,8,8,8,8,8,8,8,8,8,8,8,8,8,8,8,8,8,8,8,0,8,8,12]} 1. d4 Nf6 2. c4 e6 3. Nc3 Bb4 4. Qc2 O-O 5. Bd2 c5 6. a3 {E20: Nimzo-Indian: 4 g3 and 4 f3.} cxd4 (6... Bxc3 $11 7. Bxc3 cxd4 8. Bxd4 b6) 7. axb4 $14 dxc3 {[#]} 8. bxc3 $146 (8. Bxc3 $14 d5 9. e3) ({Predecessor:} 8. Bxc3 d5 9. b3 d4 10. Bb2 e5 11. g3 Nc6 12. Ba3 Re8 13. Bg2 e4 14. b5 d3 15. Qd2 Nd4 16. Rb1 e3 17. fxe3 Nc2+ {0-1 (17) Lautenbach,W-Wessel,R freechess.de 2014}) 8... d6 $11 9. e4 b6 10. Nf3 {[%cal Bg1f3,Bf3d4,Bd4f5][%mdl 32]} Bb7 11. Bd3 Nbd7 12. O-O Qc7 13. Rfe1 h6 14. Nd4 a6 15. f4 {Prevents Ne5.} e5 16. Nf5 Rfe8 17. Rad1 Rad8 (17... Re6 $11) 18. g3 ({Better is} 18. Bc1 $14) 18... Qc6 (18... b5 $15 19. cxb5 axb5) 19. Re2 (19. Be3 $11) 19... Nf8 20. Rde1 Ng6 21. Bc1 (21. Qc1 $11) 21... b5 $1 $15 22. cxb5 axb5 {Hoping for ...d5.} 23. c4 {Against d5} (23. Rf1 $17 {might work better.}) 23... bxc4 24. Qxc4 {[#]} Qxc4 (24... Qd7 $142 $1 25. Rf1 d5) 25. Bxc4 $17 exf4 (25... Bxe4 {is interesting.} 26. Rxe4 Nxe4 27. Bb5 d5) 26. gxf4 Rxe4 27. Rxe4 Nxe4 (27... Bxe4 $15 28. Nxh6+ gxh6) 28. Bd3 d5 29. Kf1 Rd7 30. Nd4 Rc7 31. b5 Rc3 32. Ke2 Bc8 {...Bg4+ is the strong threat.} 33. Rg1 {Prevents Bg4+.} h5 34. b6 Nc5 35. Bxg6 (35. Bb1 $1 $11) 35... fxg6 36. Bb2 {[#]} Ba6+ ({Black should play} 36... Rh3 $1 $17 37. Ba1 Ba6+ 38. Kf2 Rxh2+ 39. Kf3 Rh3+ 40. Kg2 Ra3) 37. Kd1 Rd3+ (37... Rc4 $1 $15 {feels stronger.} 38. Rxg6 Nd3) 38. Kc2 {[%cal Od4e6]} Rh3 39. Rg2 Kf7 40. Nc6 Nd7 (40... h4 $11 {remains equal.}) 41. b7 $1 $16 {White is more active.} Bd3+ (41... Bxb7 $16 {is a better defense.} 42. Nd8+ Kf8) 42. Kc1 $18 {Threatens to win with Ne5+.} Ke6 43. Rg3 $2 (43. Ne5 $18 {Black must now prevent Nxd7.} Nb8 44. Nxd3 (44. Nxg6 Be4 $18) 44... Rxd3 45. Kc2) 43... Rxg3 $11 {The position is equal.} 44. hxg3 {[%mdl 4096] Endgame And now Ne5 would win. KBN-KBN} Ba6 45. b8=Q Nxb8 46. Nxb8 Bb5 47. Bxg7 Kf5 48. Kd2 g5 49. fxg5 Kxg5 50. Ke3 h4 51. gxh4+ Kxh4 52. Bf8 Kh5 53. Kf4 Kg6 54. Ke5 Bc4 55. Nc6 Kg5 56. Bc5 Kg4 57. Bd4 Kf3 58. Nd8 Ke2 59. Ne6 Kf3 60. Bc5 Ke2 61. Ng5 Kd3 62. Bd4 Kc2 63. Ne6 Kd3 64. Nc5+ Kd2 65. Bf2 Ke2 66. Bh4 $1 Kf3 67. Bg5 Kg4 68. Bf4 Kf3 69. Ne6 Ke2 70. Kd4 Kf3 71. Be5 Kg4 72. Ng7 Kf3 73. Bd6 Kg4 74. Ke3 Kg5 75. Ne6+ Kf6 76. Nd4 Kg5 77. Kf3 Kf6 78. Kf4 $1 Bd3 79. Be5+ Kg6 80. Bc7 Kf6 81. Bd8+ Kf7 82. Ke5 Be4 83. Bf6 Kg6 84. Ne6 Kf7 85. Nf4 Bf3 86. Bh4 Be4 87. Ne6 Kg6 88. Nf4+ Kf7 89. Bg5 Bf3 {Never resign too early!  Weighted Error Value: White=0.26 (precise) /Black=0.22 (precise)} 1/2-1/2

[Event "FIDE WSCC 50 2022"]
[Site "Assisi"]
[Date "2022.11.17"]
[Round "3.25"]
[White "Krizsany, Laszlo"]
[Black "Fayard, Alain"]
[Result "1-0"]
[ECO "E16"]
[WhiteElo "2371"]
[BlackElo "2210"]
[Annotator "TA"]
[PlyCount "49"]
[EventDate "2022.11.14"]
[EventType "swiss"]
[EventCountry "ITA"]
[SourceTitle "playchess.com"]
[Source "ChessBase"]
[SourceQuality "1"]
[TimeControl "40/5400+30:1800+30"]

{[%evp 16,49,30,22,25,13,9,7,18,5,6,26,29,29,77,45,63,59,91,32,50,48,51,47,55,50,49,56,62,44,117,119,141,145,506,509]} 1. d4 Nf6 2. c4 e6 3. Nf3 Bb4+ 4. Bd2 a5 5. g3 b6 6. Bg2 Bb7 7. O-O O-O 8. Bg5 Be7 9. Qc2 c5 {E16: Queen's Indian: 4 g3 Bb7 5 Bg2 Bb4+.} 10. Nc3 cxd4 11. Nxd4 Bxg2 {The position is equal.} 12. Kxg2 Qc8 {[#]} 13. b3 $146 ({Predecessor:} 13. Ne4 Qb7 14. f3 Nxe4 15. Bxe7 Re8 16. Ba3 Nc5 17. Rfd1 Nba6 18. Nb5 Red8 19. Rd6 {1-0 (76) Mishuchkov,N (2418)-Sloth,J (2349) Rijeka 2011}) 13... Qc5 14. Qd2 h6 (14... d5 $1 $11 {might be stronger.}) 15. Be3 (15. Bxf6 $5 Bxf6 16. Rad1 $14) 15... Ng4 16. Na4 Qc7 17. Rad1 (17. Kg1 $16) 17... Nxe3+ 18. Qxe3 Na6 19. Qf3 Nc5 20. Nb5 Qc6 21. Nxc5 Bxc5 22. Rd3 Rfc8 ({Better is} 22... g5 $14) 23. Rfd1 $16 {White is more active.} d5 {[#]} 24. a4 $1 dxc4 $2 {[%mdl 8192] [#]} (24... Rd8 $16 25. cxd5 exd5) 25. Rd8+ $3 {[%mdl 512] Weighted Error Value: White=0.11 (very precise) /Black=0.45} 1-0

[Event "FIDE WSCC 50 2022"]
[Site "Assisi"]
[Date "2022.11.17"]
[Round "3.27"]
[White "Cummings, David H."]
[Black "Wolf, Eran"]
[Result "1-0"]
[ECO "A28"]
[WhiteElo "2318"]
[BlackElo "1787"]
[Annotator "TA"]
[PlyCount "57"]
[EventDate "2022.11.14"]
[EventType "swiss"]
[EventCountry "ITA"]
[SourceTitle "playchess.com"]
[Source "ChessBase"]
[SourceQuality "1"]
[TimeControl "40/5400+30:1800+30"]

{[%evp 11,57,0,9,7,12,-15,0,-7,10,0,0,10,16,12,17,2,9,7,29,35,41,0,102,102,122,84,139,155,154,155,172,160,177,189,194,187,256,264,414,402,504,493,597,598,830,776,1267,1170]} 1. c4 e5 2. Nc3 Nf6 3. Nf3 Nc6 4. e3 Bb4 5. Qc2 Bxc3 6. bxc3 O-O 7. e4 {A28: English Opening: Four Knights Variation.} Re8 8. g3 d6 9. Bg2 {[#] The position is equal.} Bg4 $146 ({Predecessor:} 9... a6 10. O-O Be6 11. d3 b5 12. cxb5 axb5 13. h3 h6 14. Be3 Ra5 15. Rfb1 Qc8 {1-0 (40) Khudyakov,A (2238)-Gasanov,E (2440) Alushta 2001}) 10. h3 Be6 11. d3 h6 12. O-O Ne7 13. Ne1 Qc8 14. Kh2 Nh7 15. f4 exf4 16. Bxf4 g5 (16... Ng5 $11) 17. Be3 $16 Ng6 18. Rb1 Rb8 ({Black should try} 18... c5) 19. Bxa7 {White is more active.} Ra8 20. Be3 c6 21. Rb2 Ne5 22. Nf3 Nxf3+ 23. Rxf3 h5 (23... Qd7 $142 24. Rf2 Qe7) 24. Rf1 $18 h4 (24... f6 $142 25. Qe2 g4) 25. gxh4 g4 26. hxg4 {White is clearly winning.} Bxg4 27. Qf2 Qd7 28. Qg3 {[#] Black must now prevent Bh3.} Ra5 29. Rf4 {Weighted Error Value: White=0.06 (flawless) /Black=0.40} 1-0

[Event "FIDE WSCC 50 2022"]
[Site "Assisi"]
[Date "2022.11.17"]
[Round "3.28"]
[White "Fiore, Mario Angelo"]
[Black "Danielsen, Henrik"]
[Result "0-1"]
[ECO "B09"]
[WhiteElo "2213"]
[BlackElo "2514"]
[Annotator "TA"]
[PlyCount "66"]
[EventDate "2022.11.14"]
[EventType "swiss"]
[EventCountry "ITA"]
[SourceTitle "playchess.com"]
[Source "ChessBase"]
[SourceQuality "1"]
[TimeControl "40/5400+30:1800+30"]

{[%evp 21,66,20,35,40,30,-3,-6,-9,-16,-77,-81,-71,-77,-72,-74,-77,-69,-80,-79,-83,-91,-78,-78,-85,-78,-80,-79,-81,-81,-86,-77,-82,-75,-80,-83,-81,-81,-102,-99,-97,-99,-101,-101,-101,-106,-260,-238]} 1. e4 d6 2. d4 Nf6 3. Nc3 g6 4. f4 Bg7 5. Nf3 O-O 6. Bd3 Nc6 7. e5 dxe5 8. dxe5 Nd5 9. Nxd5 Qxd5 10. Qe2 Bg4 11. Be4 Qa5+ 12. Bd2 {B09: Pirc Defence: Austrian Attack.} Qb6 13. Bc3 {Against Nd4} (13. O-O-O $5 {[%cal Rd2e3]}) 13... Rad8 14. Qf2 {The position is equal.} f6 15. exf6 (15. Qxb6 $11 {remains equal.} axb6 16. O-O) 15... Bxf6 $17 16. Qxb6 Bxc3+ 17. bxc3 axb6 18. g3 Bxf3 19. Bxf3 e5 {[#]} 20. O-O $146 ({Of course not} 20. Bxc6 bxc6 21. fxe5 Rf5) ({Predecessor:} 20. Bxc6 bxc6 21. fxe5 Rf5 22. Rd1 Rxe5+ 23. Kf2 Rf8+ 24. Kg2 Re2+ 25. Kh3 Rf7 26. Rhf1 Rxf1 27. Rxf1 Rxc2 {0-1 (35) Gawle,I-Perdek,M Poland 1991}) 20... exf4 21. gxf4 Kg7 22. Be4 Rde8 23. Bd3 Ne7 24. Be4 {Against Nd5} Nf5 25. Bxb7 Re3 26. Rf3 Rxf3 27. Bxf3 {[%mdl 4096] Endgame KRB-KRN} Nd6 28. Bd5 Rxf4 29. a4 Nf5 30. c4 {[%cal Oc4c5]} Ne3 {[%csl LRc2,LRc4]} 31. Re1 Nxd5 {Black has more active pieces.} ({Reject} 31... Nxc2 $6 32. Re7+ Kf6 33. Rxc7 $15) 32. cxd5 Kf7 {Inhibits Re7+.} ({Much weaker is} 32... Rxa4 $6 33. Re7+ Kf6 34. Rxc7 $11) 33. a5 $2 {[#]} (33. Re6 $17 {is a better defense.}) 33... bxa5 {White did not feel at home in the position after the opening.  Weighted Error Value: White=0.16 (very precise) /Black=0.01 (flawless)} 0-1

[Event "FIDE WSCC 50 2022"]
[Site "Assisi"]
[Date "2022.11.18"]
[Round "4.1"]
[White "Lima, Darcy"]
[Black "Sturua, Zurab"]
[Result "1-0"]
[ECO "C45"]
[WhiteElo "2415"]
[BlackElo "2522"]
[Annotator "TA"]
[PlyCount "64"]
[EventDate "2022.11.14"]
[EventType "swiss"]
[EventCountry "ITA"]
[SourceTitle "playchess.com"]
[Source "ChessBase"]
[SourceQuality "1"]
[TimeControl "40/5400+30:1800+30"]

{[%evp 10,64,40,10,0,6,50,52,82,80,89,95,97,94,103,88,97,111,108,95,136,140,186,128,127,112,218,223,229,212,223,183,177,165,229,255,306,299,312,298,381,334,388,368,372,387,364,381,370,313,298,300,298,299,295,288,239]} 1. e4 {[%emt 0:00:15]} e5 {[%emt 0:00:45]} 2. Nf3 {[%emt 0:00:30]} Nc6 {[%emt 0:00:22]} 3. d4 {[%emt 0:00:22]} exd4 {[%emt 0:00:17]} 4. Nxd4 {[%emt 0:00:06]} Bc5 {[%emt 0:01:10]} 5. Nb3 {[%emt 0:00:30]} Bb4+ {[%emt 0:04:06]} 6. Bd2 {[%emt 0:01:14]} a5 {[%emt 0:04:24] C45: Scotch Game.} 7. a3 {[%emt 0:00:34]} Bxd2+ {[%emt 0:01:32] was the old line (7...Be7).} 8. Qxd2 {[%emt 0:00:11]} (8. N1xd2 a4 9. Nc1 d6 $11) 8... Nge7 {[%emt 0:01:38] White is slightly better.} 9. Nc3 {[%emt 0:00:57] White is more active.} d6 {[%emt 0:00:45]} 10. O-O-O {[%emt 0:01:57]} O-O {[%emt 0:06:47]} 11. f4 {[%emt 0:03:34] [#]} Be6 $146 {[%emt 0:01:29]} ({Predecessor:} 11... f5 12. Bc4+ Kh8 13. g3 a4 14. Nd4 Nxd4 15. Qxd4 fxe4 16. Nxe4 Bg4 17. Rd2 Qd7 {½-½ (44) Cemhan,K (1952)-Ozturk Orenli,K (2309) Kemer 2012}) 12. Be2 {[%emt 0:19:15]} Nc8 {[%emt 0:09:26]} 13. h4 {[%emt 0:05:30]} Nb6 {[%emt 0:17:06]} 14. Nd4 {[%emt 0:05:13]} Re8 {[%emt 0:03:10]} 15. g4 {[%emt 0:04:31]} Bc4 {[%emt 0:21:35]} (15... Nxd4 $16 16. Qxd4 Qe7) 16. Bxc4 {[%emt 0:14:59]} ({Better is} 16. h5 $18) 16... Nxc4 $16 {[%emt 0:00:05]} 17. Qd3 {[%emt 0:00:03]} Nb6 {[%emt 0:02:21]} (17... Nxd4 $16 {is a better defense.} 18. Qxd4 Nb6) 18. Nf5 $18 {[%emt 0:08:23][%cal Bd4f5,Bf5e3,Be3g2,Bg2e3][%mdl 32]} Ne7 {[%emt 0:00:40]} 19. Ne3 {[%emt 0:00:46]} Ng6 {[%emt 0:05:59]} 20. Ng2 {[%emt 0:00:07]} Nf8 {[%emt 0:03:17]} 21. g5 {[%emt 0:00:22]} Qd7 {[%emt 0:09:45]} (21... Nfd7 {might work better.} 22. Qf3 Nc5) 22. h5 {[%emt 0:07:08][%cal Bh4h5,Bh5h6][%mdl 32] aiming for h6.} Qc6 {[%emt 0:00:05]} 23. h6 {[%emt 0:00:24] [#] And now hxg7 would win.} g6 {[%emt 0:00:04]} 24. Ne3 {[%emt 0:00:35]} (24. Qd4 Ne6 25. Qf2 (25. Qf6 $2 Nd7 $19) 25... Nd7 $16) 24... Qc5 {[%emt 0:03:31]} 25. Ncd5 {[%emt 0:04:33] Strongly threatening b4.} Nfd7 {[%emt 0:01:55]} 26. b4 {[%emt 0:05:15]} axb4 {[%emt 0:00:04]} 27. axb4 {[%emt 0:00:02] The board is on fire.} Qc6 {[%emt 0:00:07]} 28. Qd4 {[%emt 0:00:24][%csl Gh6][%cal Rd4g7] Prevents f6.} f6 {[%emt 0:00:10]} 29. Nxf6+ {[%emt 0:07:15]} Nxf6 {[%emt 0:00:09] White has a decisive advantage.} 30. Qxf6 {[%emt 0:00:03][%csl Gh6][%cal Rf6g7]} ({Worse is} 30. gxf6 Kf7 31. e5 Qa4 $15) 30... Qd7 {[%emt 0:00:06] Inhibits Qg7+.} 31. Qd4 {[%emt 0:00:10]} Re7 {[%emt 0:01:27] [#]} 32. f5 {[%emt 0:01:16] Against Qe6} Qc6 {[%emt 0:00:00] Weighted Error Value: White=0.10 (very precise) /Black=0.21 (precise)} 1-0

[Event "FIDE WSCC 50 2022"]
[Site "Assisi"]
[Date "2022.11.18"]
[Round "4.2"]
[White "Morovic Fernandez, Ivan"]
[Black "Antonio, Rogelio Jr"]
[Result "1/2-1/2"]
[ECO "E32"]
[WhiteElo "2480"]
[BlackElo "2397"]
[Annotator "TA"]
[PlyCount "89"]
[EventDate "2022.11.14"]
[EventType "swiss"]
[EventCountry "ITA"]
[SourceTitle "playchess.com"]
[Source "ChessBase"]
[SourceQuality "1"]
[TimeControl "40/5400+30:1800+30"]

{[%evp 23,89,8,24,21,20,9,24,14,18,11,20,0,0,0,0,0,0,0,0,-62,0,0,12,17,8,-26,0,0,6,0,3,0,0,0,0,-39,0,0,0,-4,10,-8,0,-21,81,69,80,-39,-26,-84,-34,-57,0,-17,26,0,0,0,0,0,6,-47,-52,-52,-46,-32,-43,-63]} 1. d4 {[%emt 0:00:59]} Nf6 {[%emt 0:01:12]} 2. c4 {[%emt 0:00:31]} e6 {[%emt 0:00:13]} 3. Nc3 {[%emt 0:00:08]} Bb4 {[%emt 0:01:02]} 4. Qc2 {[%emt 0:00:15]} O-O {[%emt 0:01:35]} 5. a3 {[%emt 0:00:26]} Bxc3+ {[%emt 0:01:12]} 6. Qxc3 {[%emt 0:00:09]} b6 {[%emt 0:00:12]} 7. Bg5 {[%emt 0:00:33]} Bb7 {[%emt 0:01:43]} 8. e3 {[%emt 0:01:14]} d6 {[%emt 0:05:39]} 9. f3 {[%emt 0:01:13]} h6 {[%emt 0:04:34]} 10. Bh4 {[%emt 0:02:04]} Nbd7 {[%emt 0:01:15]} 11. Nh3 {[%emt 0:01:52] has lost popularity (11.Bd3).} c5 {[%emt 0:04:32]} 12. dxc5 {[%emt 0:01:47]} bxc5 {[%emt 0:00:50]} 13. Be2 {[%emt 0:02:16] E32: Nimzo-Indian: Classical (4 Qc2): 4...0-0.} a5 {[%emt 0:02:45]} 14. O-O {[%emt 0:01:17]} d5 {[%emt 0:01:47]} 15. Rad1 {[%emt 0:04:39] White has an edge.} Qb6 {[%emt 0:01:38]} 16. Rd2 {[%emt 0:05:09]} Rfc8 {[%emt 0:01:48]} 17. Rfd1 {[%emt 0:07:38]} Bc6 {[%emt 0:00:55] [#]} 18. Bf2 $146 {[%emt 0:09:11]} ({Predecessor:} 18. Nf2 Ba4 19. Rc1 Bb3 20. Ng4 Nxg4 21. fxg4 a4 22. g5 hxg5 23. Bxg5 Re8 24. cxd5 {½-½ (24) Winkler,T (2631)-Hiltunen,R (2503) ICCF email 2007}) 18... Ba4 {[%emt 0:01:00]} 19. Rb1 {[%emt 0:02:21]} Bb3 {[%emt 0:00:10]} 20. cxd5 {[%emt 0:03:40]} exd5 {[%emt 0:01:31]} 21. Nf4 {[%emt 0:01:54]} ({White should play} 21. Bd1 $11 Bxd1 22. Rbxd1) 21... Qb7 {[%emt 0:03:13]} (21... g5 $15 22. Nh3 a4) 22. Bd1 $11 {[%emt 0:07:55]} Bxd1 {[%emt 0:00:35]} 23. Rbxd1 {[%emt 0:01:04][%cal Rf4d5]} Nb6 {[%emt 0:00:26]} 24. Nd3 {[%emt 0:14:16]} Nfd7 {[%emt 0:02:50]} (24... c4 $5 {[%cal Rc4d3]} 25. Ne5 Na4 $11) 25. Qc2 {[%emt 0:04:31]} a4 {[%emt 0:02:57]} 26. Nf4 {[%emt 0:02:37][%cal Rf4d5]} Nf6 {[%emt 0:00:58]} 27. Qf5 {[%emt 0:02:28]} Rc6 {[%emt 0:00:09]} 28. Re2 {[%emt 0:07:03]} Re8 {[%emt 0:04:19]} 29. Be1 {[%emt 0:01:19]} g6 {[%emt 0:04:41]} (29... g5 $5 {[%cal Rg5f4]} 30. Nd3 Qd7 31. Qxd7 Nfxd7 $11) 30. Qc2 {[%emt 0:01:14]} g5 {[%emt 0:03:26]} 31. Nd3 {[%emt 0:00:43]} Qc8 {[%emt 0:00:45]} 32. Rc1 {[%emt 0:04:07][%cal Od3b4]} Nfd7 {[%emt 0:01:52]} 33. h4 {[%emt 0:03:35]} Rce6 {[%emt 0:00:53]} (33... Ree6 $11) 34. hxg5 $16 {[%emt 0:00:51]} hxg5 {[%emt 0:00:32]} 35. Nf2 {[%emt 0:03:00]} ({White must play} 35. Nxc5 $16 Nxc5 36. Qxc5) 35... Qa6 $15 {[%emt 0:01:57]} (35... Rxe3 36. Rxe3 Rxe3 37. Qd2 $11) 36. e4 {[%emt 0:01:18]} (36. Rd2 $1 $11 {keeps the balance.}) 36... Ne5 {[%emt 0:03:13]} (36... d4 $17 {...Ne5 is the strong threat.} 37. Rd2 {[#]} Nd5 $1) 37. Qd1 $1 {[%emt 0:00:48]} ({Don't play} 37. Qd2 Nbd7 38. Nh3 (38. Qxg5+ $2 Rg6 $19) 38... f6 $17) 37... Qb5 {[%emt 0:01:42]} (37... g4 $5 38. Nxg4 Nxg4 39. fxg4 Nd7 $17) 38. Rec2 {[%emt 0:00:32]} Nec4 {[%emt 0:00:16]} (38... Nbc4 $5 {[%cal Re6g6]}) 39. Rxc4 {[%emt 0:02:05]} Nxc4 {[%emt 0:03:29]} 40. Qxd5 {[%emt 0:00:12]} Ne5 {[%emt 0:00:01]} (40... Nxb2 $2 41. Rxc5 Qb8 42. Bc3 $18) 41. Bc3 {[%emt 0:02:39]} Qc6 {[%emt 0:00:49]} 42. Bxe5 {[%emt 0:16:45]} (42. Qd2 $11) 42... Qxd5 {[%emt 0:00:06][%mdl 64] [#] Remove Defender. Black is slightly better.} 43. exd5 {[%emt 0:00:01]} Rxe5 {[%emt 0:00:02]} 44. Ne4 {[%emt 0:00:04] aiming for Nf6+.} Kg7 {[%emt 0:00:23] Prevents Nf6.} 45. d6 {[%emt 0:01:50] Weighted Error Value: White=0.19 (very precise) /Black=0.18 (very precise)} ({Reject} 45. Rxc5 Rb8 46. Nf2 Rd8 $17) 1/2-1/2

[Event "FIDE WSCC 50 2022"]
[Site "Assisi"]
[Date "2022.11.18"]
[Round "4.3"]
[White "Novik, Maxim"]
[Black "Bischoff, Klaus"]
[Result "1-0"]
[ECO "C00"]
[WhiteElo "2412"]
[BlackElo "2479"]
[Annotator "TA"]
[PlyCount "43"]
[EventDate "2022.11.14"]
[EventType "swiss"]
[EventCountry "ITA"]
[SourceTitle "playchess.com"]
[Source "ChessBase"]
[SourceQuality "1"]
[TimeControl "40/5400+30:1800+30"]

{[%evp 22,43,89,86,83,64,81,75,144,145,290,281,306,304,285,161,330,283,615,614,607,609,579,566]} 1. Nf3 {[%emt 0:00:30]} Nf6 {[%emt 0:00:35]} 2. g3 {[%emt 0:00:00]} d5 {[%emt 0:01:20]} 3. Bg2 {[%emt 0:00:06]} e6 {[%emt 0:01:07]} 4. O-O {[%emt 0:00:53]} Be7 {[%emt 0:00:11]} 5. d3 {[%emt 0:00:24]} c5 {[%emt 0:00:51]} 6. Nbd2 {[%emt 0:00:18]} Nc6 {[%emt 0:00:09]} 7. e4 {[%emt 0:00:04]} b6 {[%emt 0:00:45]} 8. Re1 {[%emt 0:00:14]} Bb7 {[%emt 0:00:17]} 9. c3 {[%emt 0:11:04]} Qc7 {[%emt 0:02:25]} 10. Qe2 {[%emt 0:02:16]} h6 {[%emt 0:12:56]} 11. a3 {[%emt 0:02:03]} O-O-O {[%emt 0:10:20]} 12. b4 {[%emt 0:03:26]} g5 {[%emt 0:01:11] [#] C00: French: Unusual White 2nd moves.} 13. bxc5 $1 {[%emt 0:07:11]} bxc5 {[%emt 0:02:25] [#]} 14. Rb1 $146 {[%emt 0:04:28]} ({Predecessor:} 14. Nb3 Ba6 15. c4 d4 16. Bd2 Nd7 17. Reb1 Rdg8 18. Qe1 g4 19. Nh4 Nde5 20. Qe2 Bxh4 21. Nxc5 {0-1 (41) Amerkeshev,M (2132)-Petkova,V (1947) Sofia 2007}) 14... dxe4 {[%emt 0:05:14]} ({Better is} 14... Ba6) 15. Nxe4 $16 {[%emt 0:06:47]} Nd7 {[%emt 0:07:35] [#]} (15... Nxe4 $16 {might work better.} 16. Qxe4 Bf6) 16. d4 $1 $18 {[%emt 0:06:28][%cal Bd3d4,Bd4c5][%mdl 32]} Rhe8 {[%emt 0:07:18]} 17. Be3 {[%emt 0:03:14][%cal Rd4c5]} c4 {[%emt 0:04:29]} 18. Qxc4 {[%emt 0:02:41]} (18. Nfd2 $142) 18... Nb6 {[%emt 0:01:04]} (18... Na5 19. Qxc7+ Kxc7) 19. Qb5 {[%emt 0:04:28]} f5 $2 {[%emt 0:06:41]} (19... Nb8) 20. Nc5 {[%emt 0:01:49] White is clearly winning.} Bxc5 {[%emt 0:00:30]} 21. dxc5 {[%emt 0:00:30]} ({Avoid the trap} 21. Qxc5 $2 Rd5 22. Rxb6 Rxc5 23. Rxb7 Kxb7 $19) 21... Nd5 {[%emt 0:00:09]} 22. Bd4 {[%emt 0:04:52] Black got outplayed after the opening.  Weighted Error Value: White=0.26 (precise) /Black=0.92} 1-0